fUST/lending_fUST_20240704
["ID","MTS","AMOUNT","RATE_DAILY","PERIOD"]
[331080102,1720068639389,-1727.11,0.00014272,2]
[331080103,1720068639397,-867.77,0.00014272,2]
[331080104,1720068639408,-500.0,0.00014272,2]
[331080105,1720068639418,-500.0,0.00014272,2]
[331080106,1720068639428,-598.88,0.00014272,2]
[331080107,1720068639438,-684.67,0.00014272,2]
[331080108,1720068639447,-857.75,0.00014272,2]
[331080109,1720068639456,-512.35,0.00014272,2]
[331080110,1720068639466,-500.0,0.00014272,2]
[331080111,1720068639476,-2989.15,0.00014272,2]
[331080112,1720068639486,-1747.64,0.00014272,2]
[331080113,1720068639495,-500.0,0.00014272,2]
[331080114,1720068639504,-500.0,0.00014272,2]
[331080115,1720068639514,-616.46,0.00014272,2]
[331080116,1720068639523,-500.0,0.00014272,2]
[331080117,1720068639532,-500.0,0.00014272,2]
[331080118,1720068639541,-963.36,0.00014272,2]
[331080119,1720068639550,-616.47,0.00014272,2]
[331080120,1720068639559,-2904.21,0.00014272,2]
[331080121,1720068639570,-500.0,0.00014272,2]
[331080122,1720068639579,-500.0,0.00014272,2]
[331080123,1720068639589,-500.0,0.00014272,2]
[331080124,1720068639598,-500.0,0.00014272,2]
[331080125,1720068639607,-500.0,0.00014276,2]
[331080126,1720068639616,-500.0,0.00014277,2]
[331080127,1720068639625,-500.0,0.00014277,2]
[331080128,1720068639635,-16294.16918426,0.00014278,2]
[331080129,1720068639644,-500.0,0.00014278,2]
[331080130,1720068639654,-500.0,0.00014278,2]
[331080131,1720068639664,-625.79,0.00014278,2]
[331080132,1720068639674,-507.39189646,0.00014278,2]
[331080133,1720068639683,-563.78328582,0.00014278,2]
[331080134,1720068639693,-500.0,0.00014278,2]
[331080135,1720068639703,-500.0,0.00014278,2]
[331080136,1720068639713,-500.0,0.00014278,2]
[331080137,1720068639723,-488.16182448,0.00014278,2]
[331080138,1720068639733,-500.0,0.00014278,2]
[331080139,1720068639742,-500.0,0.00014278,2]
[331080140,1720068639752,-500.0,0.00014278,2]
[331080141,1720068639761,-500.0,0.00014278,2]
[331080142,1720068639771,-500.0,0.00014278,2]
[331080143,1720068639780,-500.0,0.00014278,2]
[331080144,1720068639790,-500.0,0.00014278,2]
[331080145,1720068639799,-500.0,0.00014278,2]
[331080146,1720068639808,-500.0,0.00014278,2]
[331080147,1720068639817,-500.0,0.00014278,2]
[331080148,1720068639827,-500.0,0.00014278,2]
[331080149,1720068639836,-500.0,0.00014278,2]
[331080150,1720068639845,-500.0,0.00014278,2]
[331080151,1720068639855,-500.0,0.00014278,2]
[331080152,1720068639864,-500.0,0.00014278,2]
[331080153,1720068639874,-500.0,0.00014278,2]
[331080154,1720068639884,-500.0,0.00014278,2]
[331080155,1720068639894,-185.76252799,0.00014278,2]
[331080156,1720068639903,-500.0,0.00014278,2]
[331080157,1720068639912,-376.88745205,0.00014278,2]
[331080158,1720068639922,-511.3427263,0.00014278,2]
[331080159,1720068639931,-500.0,0.00014278,2]
[331080160,1720068639941,-500.0,0.00014278,2]
[331080161,1720068639950,-510.13932825,0.00014278,2]
[331080162,1720068639959,-503.56208392,0.00014278,2]
[331080163,1720068639968,-500.0,0.00014278,2]
[331080164,1720068639978,-500.0,0.00014278,2]
[331080165,1720068639987,-500.0,0.00014278,2]
[331080166,1720068639997,-500.0,0.00014278,2]
[331080167,1720068640007,-500.0,0.00014278,2]
[331080169,1720068640016,-500.0,0.00014278,2]
[331080171,1720068640025,-507.99358033,0.00014278,2]
[331080172,1720068640035,-290.09242498,0.00014278,2]
[331080174,1720068640044,-504.04495603,0.00014278,2]
[331080176,1720068640054,-500.0,0.00014278,2]
[331080179,1720068640063,-500.0,0.00014278,2]
[331080180,1720068640073,-500.0,0.00014278,2]
[331080182,1720068640083,-500.0,0.00014278,2]
[331080184,1720068640092,-500.0,0.00014278,2]
[331080186,1720068640102,-500.0,0.00014278,2]
[331080188,1720068640111,-843.5,0.00014278,2]
[331080189,1720068640121,-500.0,0.00014278,2]
[331080191,1720068640131,-418.94298943,0.00014278,2]
[331080193,1720068640141,-500.0,0.00014278,2]
[331080195,1720068640151,-555.06375848,0.00014278,2]
[331080197,1720068640161,-196.87128302,0.00014278,2]
[331080198,1720068640171,-500.0,0.00014278,2]
[331080200,1720068640181,-521.96,0.00014278,2]
[331080201,1720068640191,-500.0,0.00014278,2]
[331080202,1720068640199,-500.0,0.00014278,2]
[331080203,1720068640209,-500.0,0.00014278,2]
[331080204,1720068640218,-500.0,0.00014278,2]
[331080205,1720068640227,-273.26497135,0.00014278,2]
[331080206,1720068640237,-500.0,0.00014278,2]
[331080208,1720068640246,-500.0,0.00014278,2]
[331080210,1720068640255,-500.0,0.00014278,2]
[331080212,1720068640264,-500.0,0.00014278,2]
[331080214,1720068640274,-500.0,0.00014278,2]
[331080216,1720068640283,-441.1317508,0.00014278,2]
[331080218,1720068640293,-500.0,0.00014278,2]
[331080220,1720068640302,-500.0,0.00014278,2]
[331080222,1720068640311,-500.0,0.00014278,2]
[331080224,1720068640321,-500.0,0.00014278,2]
[331080226,1720068640334,-191.02253911,0.00014278,2]
[331080228,1720068640344,-500.0,0.00014278,2]
[331080230,1720068640353,-500.0,0.00014278,2]
[331080232,1720068640363,-500.0,0.00014278,2]
[331080234,1720068640372,-3164.58,0.00014278,2]
[331080236,1720068640382,-500.0,0.00014278,2]
[331080238,1720068640395,-500.0,0.00014278,2]
[331080241,1720068640404,-500.0,0.00014278,2]
[331080243,1720068640415,-500.0,0.00014278,2]
[331080245,1720068640424,-500.0,0.00014278,2]
[331080247,1720068640433,-357.72624738,0.00014278,2]
[331080248,1720068640442,-500.0,0.00014278,2]
[331080249,1720068640452,-500.0,0.00014278,2]
[331080250,1720068640461,-659.0,0.00014278,2]
[331080251,1720068640470,-500.0,0.00014278,2]
[331080252,1720068640479,-500.0,0.00014278,2]
[331080254,1720068640596,-500.0,0.00014278,2]
[331080255,1720068640606,-500.0,0.00014278,2]
[331080257,1720068640615,-576.51,0.00014278,2]
[331080258,1720068640625,-500.0,0.00014278,2]
[331080259,1720068640634,-500.0,0.00014278,2]
[331080260,1720068640647,-491.81,0.00014278,2]
[331080261,1720068640656,-500.0,0.00014278,2]
[331080262,1720068640666,-500.0,0.00014278,2]
[331080263,1720068640679,-500.0,0.00014278,2]
[331080264,1720068640688,-500.0,0.00014278,2]
[331080265,1720068640699,-500.0,0.00014278,2]
[331080266,1720068640709,-500.0,0.00014278,2]
[331080267,1720068640718,-500.0,0.00014278,2]
[331080268,1720068640728,-500.0,0.00014278,2]
[331080269,1720068640737,-500.0,0.00014278,2]
[331080270,1720068640746,-590.29,0.00014278,2]
[331080271,1720068640756,-500.0,0.00014278,2]
[331080272,1720068640765,-500.0,0.00014278,2]
[331080273,1720068640774,-500.0,0.00014278,2]
[331080274,1720068640784,-500.0,0.00014278,2]
[331080275,1720068640793,-500.0,0.00014278,2]
[331080276,1720068640802,-500.0,0.00014278,2]
[331080277,1720068640811,-613.2,0.00014278,2]
[331080278,1720068640821,-500.0,0.00014278,2]
[331080279,1720068640830,-500.0,0.00014278,2]
[331080280,1720068640840,-500.0,0.00014278,2]
[331080281,1720068640849,-500.0,0.00014278,2]
[331080282,1720068640859,-500.0,0.00014278,2]
[331080283,1720068640868,-500.0,0.00014278,2]
[331080284,1720068640877,-500.0,0.00014278,2]
[331080285,1720068640887,-503.8136064,0.00014278,2]
[331080286,1720068640897,-500.0,0.00014278,2]
[331080287,1720068640907,-500.0,0.00014278,2]
[331080288,1720068640917,-500.0,0.00014278,2]
[331080289,1720068640927,-500.0,0.00014278,2]
[331080290,1720068640936,-500.0,0.00014282,2]
[331080291,1720068640945,-500.0,0.00014283,2]
[331080292,1720068640955,-181.04505831,0.00014283,2]
[331080293,1720068640964,-354.47965291,0.00014284,2]
[331080294,1720068640974,-7409.68,0.00014284,2]
[331080295,1720068640983,-500.0,0.00014284,2]
[331080296,1720068640991,-2399.14,0.00014284,2]
[331080297,1720068641001,-500.0,0.00014289,2]
[331080298,1720068641010,-500.0,0.00014294,2]
[331080299,1720068641019,-500.0,0.00014294,2]
[331080300,1720068641028,-1830.43,0.00014294,2]
[331080301,1720068641038,-5865.12,0.00014294,2]
[331080302,1720068641047,-526.05212795,0.00014294,2]
[331080303,1720068641056,-756.21,0.00014294,2]
[331080304,1720068641065,-500.0,0.00014294,2]
[331080305,1720068641074,-546.39,0.00014294,2]
[331080306,1720068641084,-778.69,0.00014294,2]
[331080307,1720068641093,-4324.24,0.00014294,2]
[331080308,1720068641102,-122632.140721,0.00014536,2]
[331080309,1720068641111,-607.86951301,0.00014541,2]
[331080310,1720068641120,-558.76941298,0.00014541,2]
[331080311,1720068641129,-500.0,0.00014541,2]
[331080312,1720068641139,-500.0,0.00014541,2]
[331080313,1720068641149,-500.0,0.00014541,2]
[331080314,1720068641158,-500.0,0.00014541,2]
[331080315,1720068641168,-500.0,0.00014541,2]
[331080316,1720068641178,-1421.99,0.00014541,2]
[331080317,1720068641188,-500.0,0.00014541,2]
[331080318,1720068641198,-500.0,0.00014541,2]
[331080319,1720068641209,-500.0,0.00014541,2]
[331080320,1720068641219,-500.0,0.00014541,2]
[331080321,1720068641229,-500.0,0.00014541,2]
[331080322,1720068641240,-8733.88,0.00014541,2]
[331080323,1720068641250,-1035.13,0.00014541,2]
[331080324,1720068641259,-7419.06,0.00014541,2]
[331080325,1720068641268,-1948.63,0.00014541,2]
[331080326,1720068641276,-500.0,0.00014541,2]
[331080327,1720068641286,-500.0,0.00014541,2]
[331080328,1720068641295,-541.83,0.00014541,2]
[331080329,1720068641304,-500.0,0.00014541,2]
[331080330,1720068641313,-500.0,0.00014541,2]
[331080331,1720068641323,-500.0,0.00014541,2]
[331080332,1720068641336,-500.0,0.00014541,2]
[331080333,1720068641345,-500.0,0.00014541,2]
[331080334,1720068641354,-500.0,0.00014541,2]
[331080335,1720068641364,-500.0,0.00014541,2]
[331080336,1720068641373,-535.05,0.00014541,2]
[331080337,1720068641383,-636.45,0.00014541,2]
[331080338,1720068641393,-61316.0703604,0.00014542,2]
[331080339,1720068641402,-862.0,0.00014546,2]
[331080340,1720068641412,-500.0,0.00014546,2]
[331080341,1720068641422,-500.0,0.00014546,2]
[331080342,1720068641431,-500.0,0.00014546,2]
[331080343,1720068641440,-1235.26,0.00014546,2]
[331080344,1720068641449,-500.0,0.00014546,2]
[331080345,1720068641458,-500.0,0.00014546,2]
[331080346,1720068641467,-500.0,0.00014546,2]
[331080347,1720068641476,-710.1,0.00014546,2]
[331080348,1720068641485,-1032.62,0.00014546,2]
[331080349,1720068641494,-500.0,0.00014546,2]
[331080350,1720068641504,-500.0,0.00014546,2]
[331080351,1720068641513,-606.69,0.00014546,2]
[331080352,1720068641522,-526.95,0.00014546,2]
[331080353,1720068641531,-237.31629217,0.00014546,2]
[331080354,1720068641540,-500.0,0.00014546,2]
[331080355,1720068641549,-500.0,0.00014546,2]
[331080356,1720068641557,-500.0,0.00014546,2]
[331080357,1720068641567,-500.0,0.00014546,2]
[331080358,1720068641577,-500.0,0.00014546,2]
[331080359,1720068641587,-500.0,0.00014546,2]
[331080360,1720068641596,-500.0,0.00014546,2]
[331080361,1720068641605,-500.0,0.00014546,2]
[331080362,1720068641613,-642.19539709,0.00014546,2]
[331080363,1720068641622,-500.0,0.00014546,2]
[331080364,1720068641631,-500.0,0.00014546,2]
[331080365,1720068641640,-500.0,0.00014546,2]
[331080366,1720068641648,-500.0,0.00014546,2]
[331080367,1720068641658,-500.0,0.00014546,2]
[331080368,1720068641666,-500.0,0.00014546,2]
[331080369,1720068641675,-500.0,0.00014546,2]
[331080370,1720068641684,-500.0,0.00014546,2]
[331080371,1720068641693,-500.0,0.00014546,2]
[331080372,1720068641702,-500.0,0.00014546,2]
[331080373,1720068641711,-631.91,0.00014546,2]
[331080374,1720068641720,-500.0,0.00014546,2]
[331080375,1720068641730,-1519.49,0.00014546,2]
[331080376,1720068641740,-1727.11,0.00014546,2]
[331080377,1720068641750,-867.77,0.00014546,2]
[331080378,1720068641760,-500.0,0.00014546,2]
[331080379,1720068641771,-598.88,0.00014546,2]
[331080380,1720068641781,-684.67,0.00014546,2]
[331080381,1720068641792,-857.75,0.00014546,2]
[331080382,1720068641801,-512.35,0.00014546,2]
[331080383,1720068641810,-500.0,0.00014546,2]
[331080384,1720068641821,-2989.15,0.00014546,2]
[331080385,1720068641829,-1747.64,0.00014546,2]
[331080386,1720068641838,-500.0,0.00014546,2]
[331080387,1720068641849,-500.0,0.00014546,2]
[331080388,1720068641857,-616.46,0.00014546,2]
[331080389,1720068641867,-403.92013656,0.00014546,2]
[331080390,1720068641875,-500.0,0.00014546,2]
[331080391,1720068641884,-963.36,0.00014546,2]
[331080392,1720068641893,-616.47,0.00014546,2]
[331080393,1720068641901,-2904.21,0.00014546,2]
[331080394,1720068641910,-500.0,0.00014546,2]
[331080395,1720068641918,-188.04326466,0.00014546,2]
[331080396,1720068641927,-571.80783564,0.00014546,2]
[331080397,1720068641936,-500.0,0.00014552,2]
[331080398,1720068641944,-500.0,0.00014552,2]
[331080399,1720068641954,-625.79,0.00014552,2]
[331080400,1720068641962,-618.80056488,0.00014552,2]
[331080401,1720068641971,-500.0,0.00014552,2]
[331080402,1720068641980,-500.0,0.00014552,2]
[331080403,1720068641989,-500.0,0.00014552,2]
[331080404,1720068641998,-500.0,0.00014552,2]
[331080405,1720068642007,-500.0,0.00014552,2]
[331080406,1720068642017,-500.0,0.00014552,2]
[331080407,1720068642027,-500.0,0.00014552,2]
[331080408,1720068642036,-500.0,0.00014552,2]
[331080409,1720068642045,-510.99844591,0.00014552,2]
[331080410,1720068642054,-500.0,0.00014552,2]
[331080411,1720068642063,-500.0,0.00014552,2]
[331080412,1720068642072,-500.0,0.00014552,2]
[331080413,1720068642081,-604.48788169,0.00014552,2]
[331080414,1720068642090,-500.0,0.00014552,2]
[331080415,1720068642099,-497.1566344,0.00014552,2]
[331080416,1720068642108,-500.0,0.00014552,2]
[331080417,1720068642117,-500.0,0.00014552,2]
[331080418,1720068642126,-500.0,0.00014552,2]
[331080419,1720068642136,-500.0,0.00014552,2]
[331080420,1720068642145,-500.0,0.00014552,2]
[331080421,1720068642154,-500.0,0.00014552,2]
[331080422,1720068642163,-500.0,0.00014552,2]
[331080423,1720068642172,-500.0,0.00014552,2]
[331080424,1720068642182,-500.0,0.00014552,2]
[331080425,1720068642191,-500.0,0.00014552,2]
[331080426,1720068642200,-500.0,0.00014552,2]
[331080427,1720068642209,-517.2815086,0.00014552,2]
[331080428,1720068642218,-500.0,0.00014552,2]
[331080429,1720068642228,-500.0,0.00014552,2]
[331080430,1720068642237,-500.0,0.00014552,2]
[331080431,1720068642246,-500.0,0.00014552,2]
[331080432,1720068642255,-500.0,0.00014552,2]
[331080433,1720068642264,-843.5,0.00014552,2]
[331080434,1720068642273,-500.0,0.00014552,2]
[331080435,1720068642283,-500.0,0.00014552,2]
[331080436,1720068642292,-500.0,0.00014552,2]
[331080437,1720068642301,-521.96,0.00014552,2]
[331080438,1720068642310,-500.0,0.00014552,2]
[331080439,1720068642319,-500.0,0.00014552,2]
[331080440,1720068642332,-500.0,0.00014552,2]
[331080441,1720068642341,-500.0,0.00014552,2]
[331080442,1720068642351,-500.0,0.00014552,2]
[331080443,1720068642360,-356.97583644,0.00014552,2]
[331080444,1720068642370,-500.0,0.00014552,2]
[331080445,1720068642379,-500.0,0.00014552,2]
[331080446,1720068642389,-500.0,0.00014552,2]
[331080447,1720068642399,-500.0,0.00014552,2]
[331080448,1720068642409,-500.0,0.00014552,2]
[331080449,1720068642418,-500.0,0.00014552,2]
[331080450,1720068642428,-500.0,0.00014552,2]
[331080451,1720068642437,-500.0,0.00014552,2]
[331080452,1720068642447,-3164.58,0.00014552,2]
[331080453,1720068642456,-500.0,0.00014552,2]
[331080454,1720068642464,-500.0,0.00014552,2]
[331080455,1720068642474,-500.0,0.00014552,2]
[331080456,1720068642482,-500.0,0.00014552,2]
[331080457,1720068642491,-500.0,0.00014552,2]
[331080458,1720068642501,-659.0,0.00014552,2]
[331080459,1720068642510,-500.0,0.00014552,2]
[331080460,1720068642519,-500.0,0.00014552,2]
[331080461,1720068642527,-500.0,0.00014552,2]
[331080462,1720068642536,-500.0,0.00014552,2]
[331080463,1720068642546,-576.51,0.00014552,2]
[331080464,1720068642555,-182.31920119,0.00014552,2]
[331080465,1720068642564,-500.0,0.00014552,2]
[331080466,1720068642573,-500.0,0.00014552,2]
[331080467,1720068642582,-500.0,0.00014552,2]
[331080468,1720068642592,-500.0,0.00014552,2]
[331080469,1720068642601,-537.32435733,0.00014552,2]
[331080470,1720068642610,-423.09555159,0.00014552,2]
[331080471,1720068642619,-500.0,0.00014552,2]
[331080472,1720068642628,-500.0,0.00014552,2]
[331080473,1720068642637,-500.0,0.00014552,2]
[331080474,1720068642646,-509.87731984,0.00014552,2]
[331080475,1720068642655,-590.29,0.00014552,2]
[331080476,1720068642663,-500.0,0.00014552,2]
[331080477,1720068642672,-534.93767762,0.00014552,2]
[331080478,1720068642682,-500.0,0.00014552,2]
[331080479,1720068642691,-500.0,0.00014552,2]
[331080480,1720068642699,-500.0,0.00014552,2]
[331080481,1720068642708,-500.0,0.00014552,2]
[331080482,1720068642717,-613.2,0.00014552,2]
[331080483,1720068642726,-500.0,0.00014552,2]
[331080484,1720068642735,-500.0,0.00014552,2]
[331080485,1720068642744,-500.0,0.00014552,2]
[331080486,1720068642754,-500.0,0.00014552,2]
[331080487,1720068642764,-500.0,0.00014552,2]
[331080488,1720068642773,-500.0,0.00014552,2]
[331080489,1720068642783,-500.0,0.00014552,2]
[331080490,1720068642792,-500.0,0.00014552,2]
[331080491,1720068642801,-500.0,0.00014552,2]
[331080492,1720068642810,-500.0,0.00014552,2]
[331080493,1720068642819,-559.70959437,0.00014552,2]
[331080495,1720068642828,-500.0,0.00014556,2]
[331080497,1720068642836,-500.0,0.00014557,2]
[331080498,1720068642846,-61316.0703604,0.00014558,2]
[331080499,1720068642855,-7409.68,0.00014558,2]
[331080500,1720068642864,-500.0,0.00014558,2]
[331080501,1720068642966,-2399.14,0.00014558,2]
[331080502,1720068642976,-500.0,0.00014568,2]
[331080503,1720068642987,-500.0,0.00014568,2]
[331080504,1720068642996,-1830.43,0.00014568,2]
[331080505,1720068643006,-5865.12,0.00014568,2]
[331080507,1720068643015,-756.21,0.00014568,2]
[331080509,1720068643025,-500.0,0.00014568,2]
[331080510,1720068643035,-546.39,0.00014568,2]
[331080511,1720068643044,-778.69,0.00014568,2]
[331080512,1720068643054,-4324.24,0.00014568,2]
[331080513,1720068643064,-289.98546651,0.00014815,2]
[331080514,1720068643074,-500.0,0.00014815,2]
[331080515,1720068643084,-500.0,0.00014815,2]
[331080516,1720068643093,-500.0,0.00014815,2]
[331080517,1720068643102,-500.0,0.00014815,2]
[331080519,1720068643111,-1421.99,0.00014815,2]
[331080520,1720068643121,-500.0,0.00014815,2]
[331080521,1720068643130,-500.0,0.00014815,2]
[331080522,1720068643139,-500.0,0.00014815,2]
[331080523,1720068643149,-508.28869856,0.00014815,2]
[331080524,1720068643159,-8733.88,0.00014815,2]
[331080525,1720068643167,-500.0,0.00014815,2]
[331080526,1720068643177,-1035.13,0.00014815,2]
[331080527,1720068643186,-7419.06,0.00014815,2]
[331080528,1720068643195,-1948.63,0.00014815,2]
[331080529,1720068643204,-500.0,0.00014815,2]
[331080530,1720068643214,-500.0,0.00014815,2]
[331080532,1720068643223,-541.83,0.00014815,2]
[331080534,1720068643232,-500.0,0.00014815,2]
[331080536,1720068643241,-509.50256274,0.00014815,2]
[331080538,1720068643250,-500.0,0.00014815,2]
[331080540,1720068643259,-500.0,0.00014815,2]
[331080542,1720068643267,-372.98791134,0.00014815,2]
[331080544,1720068643277,-500.0,0.00014815,2]
[331080546,1720068643286,-500.0,0.00014815,2]
[331080547,1720068643294,-535.05,0.00014815,2]
[331080548,1720068643303,-636.45,0.00014815,2]
[331080549,1720068643312,-862.0,0.0001482,2]
[331080550,1720068643321,-500.0,0.0001482,2]
[331080551,1720068643333,-500.0,0.0001482,2]
[331080552,1720068643343,-500.0,0.0001482,2]
[331080553,1720068643353,-1235.26,0.0001482,2]
[331080554,1720068643362,-500.0,0.0001482,2]
[331080555,1720068643371,-451.78659027,0.0001482,2]
[331080556,1720068643383,-500.0,0.0001482,2]
[331080557,1720068643393,-710.1,0.0001482,2]
[331080558,1720068643403,-1032.62,0.0001482,2]
[331080559,1720068643413,-500.0,0.0001482,2]
[331080560,1720068643423,-500.0,0.0001482,2]
[331080561,1720068643432,-606.69,0.0001482,2]
[331080562,1720068643441,-526.95,0.0001482,2]
[331080563,1720068643450,-500.0,0.0001482,2]
[331080564,1720068643459,-500.0,0.0001482,2]
[331080565,1720068643468,-500.0,0.0001482,2]
[331080566,1720068643477,-500.0,0.0001482,2]
[331080567,1720068643487,-500.0,0.0001482,2]
[331080568,1720068643495,-500.0,0.0001482,2]
[331080569,1720068643504,-500.0,0.0001482,2]
[331080570,1720068643513,-500.0,0.0001482,2]
[331080571,1720068643523,-500.0,0.0001482,2]
[331080572,1720068643532,-500.0,0.0001482,2]
[331080573,1720068643541,-500.0,0.0001482,2]
[331080574,1720068643550,-500.0,0.0001482,2]
[331080575,1720068643559,-500.0,0.0001482,2]
[331080576,1720068643569,-500.0,0.0001482,2]
[331080577,1720068643578,-500.0,0.0001482,2]
[331080578,1720068643588,-631.91,0.0001482,2]
[331080579,1720068643597,-500.0,0.0001482,2]
[331080580,1720068643607,-1519.49,0.0001482,2]
[331080581,1720068643616,-1727.11,0.0001482,2]
[331080582,1720068643625,-867.77,0.0001482,2]
[331080583,1720068643636,-500.0,0.0001482,2]
[331080584,1720068643646,-598.88,0.0001482,2]
[331080585,1720068643656,-684.67,0.0001482,2]
[331080586,1720068643665,-857.75,0.0001482,2]
[331080587,1720068643675,-512.35,0.0001482,2]
[331080588,1720068643683,-211.09469019,0.0001482,2]
[331080589,1720068643693,-2989.15,0.0001482,2]
[331080590,1720068643702,-1747.64,0.0001482,2]
[331080591,1720068643712,-500.0,0.0001482,2]
[331080592,1720068643721,-500.0,0.0001482,2]
[331080593,1720068643730,-616.46,0.0001482,2]
[331080594,1720068643739,-500.0,0.0001482,2]
[331080595,1720068643748,-963.36,0.0001482,2]
[331080596,1720068643757,-616.47,0.0001482,2]
[331080597,1720068643766,-2904.21,0.0001482,2]
[331080598,1720068643775,-500.0,0.0001482,2]
[331080599,1720068643784,-481.0386752,0.00014826,2]
[331080600,1720068643793,-500.0,0.00014826,2]
[331080601,1720068643802,-625.79,0.00014826,2]
[331080602,1720068643811,-500.0,0.00014826,2]
[331080603,1720068643820,-500.0,0.00014826,2]
[331080604,1720068643830,-500.0,0.00014826,2]
[331080605,1720068643839,-500.0,0.00014826,2]
[331080606,1720068643848,-500.0,0.00014826,2]
[331080607,1720068643856,-537.08697881,0.00014826,2]
[331080608,1720068643865,-500.0,0.00014826,2]
[331080609,1720068643875,-500.0,0.00014826,2]
[331080610,1720068643884,-500.0,0.00014826,2]
[331080611,1720068643895,-500.0,0.00014826,2]
[331080612,1720068643906,-500.0,0.00014826,2]
[331080613,1720068643916,-500.0,0.00014826,2]
[331080614,1720068643929,-492.3864458,0.00014826,2]
[331080615,1720068643939,-500.0,0.00014826,2]
[331080616,1720068643948,-500.0,0.00014826,2]
[331080617,1720068643958,-500.0,0.00014826,2]
[331080618,1720068643967,-179.415589,0.00014826,2]
[331080619,1720068643977,-500.0,0.00014826,2]
[331080620,1720068643987,-500.0,0.00014826,2]
[331080621,1720068643996,-500.0,0.00014826,2]
[331080622,1720068644005,-500.0,0.00014826,2]
[331080623,1720068644014,-500.0,0.00014826,2]
[331080624,1720068644023,-843.5,0.00014826,2]
[331080625,1720068644033,-500.0,0.00014826,2]
[331080626,1720068644043,-521.96,0.00014826,2]
[331080627,1720068644054,-500.0,0.00014826,2]
[331080628,1720068644063,-500.0,0.00014826,2]
[331080629,1720068644074,-320.32768437,0.00014826,2]
[331080630,1720068644084,-500.0,0.00014826,2]
[331080631,1720068644094,-500.0,0.00014826,2]
[331080632,1720068644104,-500.0,0.00014826,2]
[331080633,1720068644113,-500.0,0.00014826,2]
[331080634,1720068644123,-500.0,0.00014826,2]
[331080635,1720068644133,-500.0,0.00014826,2]
[331080636,1720068644147,-500.0,0.00014826,2]
[331080637,1720068644156,-3164.58,0.00014826,2]
[331080638,1720068644165,-500.0,0.00014826,2]
[331080639,1720068644174,-500.0,0.00014826,2]
[331080640,1720068644183,-500.0,0.00014826,2]
[331080641,1720068644192,-500.0,0.00014826,2]
[331080642,1720068644201,-500.0,0.00014826,2]
[331080643,1720068644211,-659.0,0.00014826,2]
[331080644,1720068644220,-500.0,0.00014826,2]
[331080645,1720068644229,-500.0,0.00014826,2]
[331080646,1720068644238,-500.0,0.00014826,2]
[331080647,1720068644247,-576.51,0.00014826,2]
[331080648,1720068644257,-500.0,0.00014826,2]
[331080649,1720068644266,-500.0,0.00014826,2]
[331080650,1720068644275,-259.07453144,0.00014826,2]
[331080651,1720068644284,-500.0,0.00014826,2]
[331080652,1720068644293,-500.0,0.00014826,2]